bitfinex/quotes_SOLUSD_20241205
["timestamp","ask_amount","ask_price","bid_price","bid_amount"]
[1733386175987,7.5,234.78,234.77,38.08159082]
[1733386176291,7.5,234.78,234.77,46.27049082]
[1733386176486,7.5,234.78,234.77,59.08049082]
[1733386177265,7.5,234.78,234.77,63.81827108]
[1733386177693,7.5,234.78,234.77,87.59515508]
[1733386177865,7.5,234.78,234.77,86.7459608]
[1733386178070,7.5,234.78,234.77,87.5950324]
[1733386178889,0.508,234.94,234.87,4.269]
[1733386179878,0.508,234.94,234.86,4.39449]
[1733386180771,0.508,234.94,234.88,4.269]
[1733386181779,0.508,234.94,234.87,5.11802812]
[1733386182569,0.5081774,234.97,234.89,4.269]
[1733386182996,0.5081774,234.97,234.91,12.63306046]
[1733386183207,0.5081774,234.97,234.89,0.84895716]
[1733386183380,0.5081774,234.97,234.89,9.21301762]
[1733386183583,0.5081774,234.97,234.89,6.09229298]
[1733386183889,0.5081774,234.97,234.9,13.60739628]
[1733386184087,0.5081774,234.97,234.91,4.269]
[1733386185596,0.5081774,234.97,234.88,8.36406046]
[1733386185803,0.5081774,234.97,234.89,4.269]
[1733386186790,0.5081774,234.97,234.86,8.36406046]
[1733386186791,0.5081774,234.97,234.87,4.269]
[1733386187280,0.5081774,234.97,234.87,12.63306046]
[1733386187472,0.5081774,234.97,234.87,4.269]
[1733386187673,0.5081774,234.97,234.87,12.63306046]
[1733386190501,0.5081774,234.97,234.84,5.11807254]
[1733386190720,0.5081774,234.97,234.88,4.269]
[1733386190996,0.5081774,234.97,234.88,5.11803628]
[1733386191205,0.5081774,234.97,234.88,13.48209674]
[1733386191900,0.5081774,234.97,234.89,12.63306046]
[1733386192087,0.5081774,234.97,234.89,13.482013]
[1733386192289,0.5081774,234.97,234.91,8.36406046]
[1733386192493,0.5081774,234.97,234.89,0.84895254]
[1733386192681,0.5081774,234.97,234.89,9.213013]
[1733386192894,0.5081774,234.97,234.9,4.269]
[1733386193880,0.5081774,234.97,234.91,8.36406046]
[1733386194081,0.5081774,234.97,234.9,12.63306046]
[1733386194283,0.5081774,234.97,234.91,0.84891534]
[1733386194500,0.5081774,234.97,234.92,4.67696915]
[1733386194892,0.5081774,234.97,234.91,0.84891534]
[1733386195395,0.5081774,234.97,234.9,9.21297776]
[1733386195977,0.5081774,234.97,234.9,0.8489173]
[1733386197690,0.5081774,234.97,234.89,0.84892963]
[1733386198111,0.5081774,234.97,234.87,8.36406046]
[1733386198776,0.5081774,234.97,234.86,5.11803083]
[1733386198984,0.5081774,234.97,234.86,0.84903083]
[1733386199284,0.5081774,234.97,234.86,9.21309129]
[1733386199789,0.5081774,234.97,234.87,32.14094446]
[1733386200001,0.5081774,234.97,234.9,8.36406046]
[1733386200178,0.5081774,234.97,234.9,0.84890938]
[1733386201104,0.5081774,234.97,234.9,5.45517283]
[1733386201300,0.5081774,234.97,234.91,36.74720791]
[1733386201473,0.5081774,234.97,234.92,0.84884943]
[1733386201676,0.5081774,234.97,234.92,5.45511288]
[1733386201941,0.5081774,234.97,234.93,4.60626345]
[1733386203808,0.5081774,234.97,234.94,4.269]
[1733386204913,0.5081774,234.97,234.92,5.11784943]
[1733386205211,0.5081774,234.97,234.9,4.269]
[1733386206201,0.5081774,234.97,234.87,4.269]
[1733386206805,0.508,234.96,234.87,4.269]
[1733386206990,0.2146,234.95,234.87,4.269]
[1733386207179,0.2146,234.95,234.78,5.1183408]
[1733386207383,0.2146,234.95,234.78,9.22699314]
[1733386208106,23.991484,234.95,234.78,9.22699314]
[1733386209911,23.991484,234.95,234.8,4.269]
[1733386210208,23.991484,234.95,234.82,4.269]
[1733386210415,0.2146,234.95,234.82,4.269]
[1733386210588,0.2146,234.95,234.82,8.97420789]
[1733386210792,23.991484,234.95,234.82,8.97420789]
[1733386211015,23.991484,234.95,234.82,4.269]
[1733386211315,23.991484,234.95,234.78,0.8493408]
[1733386211613,25.70501299,234.95,234.79,4.269]
[1733386212815,25.70501299,234.95,234.73,0.84941191]
[1733386213019,0.508,234.93,234.73,8.46590789]
[1733386213224,0.508,234.9,234.73,4.269]
[1733386213395,23.991484,234.89,234.73,4.269]
[1733386214329,0.2146,234.89,234.77,4.269]
[1733386214496,0.508,234.9,234.77,9.36868567]
[1733386215209,0.508,234.9,234.77,4.269]
[1733386215407,0.508,234.9,234.78,4.269]
[1733386215923,0.508,234.9,234.74,4.269]
[1733386216716,0.2146,234.89,234.74,4.269]
[1733386217522,23.991484,234.89,234.71,4.269]
[1733386218010,23.991484,234.89,234.72,4.269]
[1733386218208,23.991484,234.89,234.72,9.38662527]
[1733386218599,0.2146,234.89,234.72,17.75068573]
[1733386218799,0.2146,234.89,234.72,9.38662527]
[1733386219001,0.2146,234.89,234.72,4.269]
[1733386219301,0.2146,234.89,234.73,4.269]
[1733386220422,23.991484,234.89,234.71,4.269]
[1733386221515,0.508,234.88,234.67,4.269]
[1733386221701,24.284884,234.86,234.67,4.269]
[1733386221901,0.508,234.84,234.67,4.269]
[1733386222128,23.991484,234.83,234.67,4.269]
[1733386222514,23.991484,234.83,234.63,4.269]
[1733386223831,23.991484,234.83,234.64,4.269]
[1733386224717,23.991484,234.83,234.62,5.11882138]
[1733386225021,23.991484,234.83,234.62,8.98190372]
[1733386225704,23.991484,234.83,234.62,4.269]
[1733386225903,23.991484,234.83,234.62,8.13208234]
[1733386226314,0.508,234.82,234.62,8.13208234]
[1733386226528,23.991484,234.81,234.59,4.269]
[1733386226902,24.284884,234.8,234.59,4.269]
[1733386227106,23.991484,234.79,234.59,4.269]
[1733386227512,23.991484,234.79,234.56,0.85001719]
[1733386227513,23.991484,234.79,234.56,13.48307765]
[1733386227816,23.991484,234.79,234.58,4.269]
[1733386228010,23.991484,234.79,234.58,5.1191163]
[1733386228324,23.991484,234.79,234.58,13.48317676]
[1733386228531,23.991484,234.79,234.6,12.63306046]
[1733386228733,23.991484,234.79,234.61,17.68556986]
[1733386228928,23.991484,234.79,234.61,9.3215094]
[1733386230840,12.83716301,234.78,234.62,4.269]
[1733386231129,0.2146,234.77,234.6,0.9]
[1733386231337,0.2146,234.77,234.6,4.30255456]
[1733386231913,0.2146,234.78,234.58,5.11911181]
[1733386232208,0.2146,234.78,234.59,4.30255456]
[1733386233616,0.2146,234.78,234.58,0.85011181]
[1733386234017,0.2146,234.78,234.58,5.11911181]
[1733386234316,0.2146,234.78,234.62,8.36406046]
[1733386234633,0.2146,234.79,234.61,9.21399122]
[1733386235133,0.2146,234.79,234.61,0.84993076]
[1733386235727,23.776884,234.79,234.62,32.39192446]
[1733386235929,0.2146,234.78,234.64,4.269]
[1733386237522,0.508,234.8,234.64,4.269]
[1733386237843,0.7226,234.8,234.66,0.12549]
[1733386238044,0.508,234.86,234.74,8.36406046]
[1733386238338,12.29775807,234.88,234.76,8.36406046]
[1733386238643,12.29775807,234.88,234.71,0.9]
[1733386238644,12.29775807,234.88,234.77,14.09377849]
[1733386238848,12.29775807,234.88,234.78,8.36406046]
[1733386239015,12.29775807,234.88,234.79,5.11835697]
[1733386239720,0.508,234.92,234.8,4.88033234]
[1733386240025,0.508,234.92,234.81,5.11829225]
[1733386240354,0.508,234.92,234.83,4.269]
[1733386240518,0.508,234.92,234.85,4.269]
[1733386240720,0.508,234.92,234.86,5.39961012]
[1733386242321,0.508,234.92,234.8,0.84929749]
[1733386242520,0.508,234.92,234.77,0.12549]
[1733386242746,0.508,234.92,234.78,4.269]
[1733386242947,0.508,234.92,234.79,0.84932693]
[1733386243936,0.508,234.92,234.8,4.269]
[1733386244144,0.508,234.92,234.81,0.84926982]
[1733386244467,0.2146,234.96,234.81,0.84926982]
[1733386244750,1.0161774,234.97,234.81,0.84926982]
[1733386244751,1.0161774,234.97,234.82,33.29192446]
[1733386244957,1.0161774,234.97,234.84,4.269]
[1733386245129,1.0161774,234.97,234.84,9.41966012]
[1733386245324,1.0161774,234.97,234.86,4.269]
[1733386246452,1.0161774,234.97,234.84,5.11809762]
[1733386246624,1.0161774,234.97,234.84,5.44516329]
[1733386247003,1.0161774,234.97,234.85,8.86506567]
[1733386247138,1.0161774,234.97,234.86,0.84907701]
[1733386248227,0.5081774,234.97,234.86,0.84907701]
[1733386248439,0.5081774,234.97,234.88,0.25098]
[1733386248643,0.5081774,234.97,234.89,4.59606567]
[1733386248949,0.5081774,234.97,234.88,25.77677628]
[1733386249541,0.5081774,234.97,234.89,4.269]
[1733386250657,0.5081774,234.97,234.88,1.74891228]
[1733386250863,0.5081774,234.97,234.89,4.269]
[1733386253166,0.5081774,234.97,234.88,0.9]
[1733386253336,0.5081774,234.97,234.85,8.36406046]
[1733386253535,0.5081774,234.97,234.88,0.84908701]
[1733386254444,0.5081774,234.97,234.89,0.84903021]
[1733386255141,0.5081774,234.97,234.84,9.0247]
[1733386255342,0.7227774,234.97,234.85,23.776884]
[1733386255763,0.7227774,234.97,234.84,8.1247]
[1733386255965,0.7227774,234.97,234.85,0.84915775]
[1733386256133,0.5081774,234.97,234.86,23.776884]
[1733386256339,0.5081774,234.97,234.87,0.8490596]
[1733386256753,0.5081774,234.97,234.88,23.776884]
[1733386256966,0.5081774,234.97,234.89,0.84900103]
[1733386257871,0.5081774,234.97,234.9,23.776884]
[1733386258840,0.5081774,234.97,234.85,8.36406046]
[1733386258841,0.5081774,234.97,234.85,0.8489628]
[1733386259041,0.7227774,234.97,234.84,8.1247]
[1733386259761,0.7227774,234.97,234.83,0.84917388]
[1733386259952,0.7227774,234.97,234.8,0.12549]
[1733386260156,0.7227774,234.97,234.81,0.84922098]
[1733386260667,0.508,234.96,234.77,0.84927933]
[1733386260837,0.2146,234.95,234.77,0.84927933]
[1733386262351,0.7226,234.96,234.81,23.776884]
[1733386262665,0.7226,234.96,234.77,5.445345]
[1733386262666,0.508,234.96,234.83,23.776884]
[1733386262875,0.508,234.96,234.85,23.776884]
[1733386264875,0.5081774,234.97,234.87,23.776884]
[1733386265364,0.5081774,234.97,234.87,36.83779245]
[1733386265563,0.5081774,234.97,234.89,23.776884]
[1733386266265,0.5081774,234.97,234.86,13.06090845]
[1733386266266,0.5081774,234.97,234.87,23.776884]
[1733386266654,0.5081774,234.97,234.87,28.37294967]
[1733386266856,0.5081774,234.97,234.89,23.776884]
[1733386267055,0.5081774,234.97,234.89,28.37294967]
[1733386267255,0.5081774,234.97,234.9,4.59606567]
[1733386267458,0.5081774,234.97,234.91,23.776884]
[1733386268263,0.5081774,234.97,234.91,28.37294967]
[1733386268442,0.5081774,234.97,234.93,23.776884]
[1733386268642,0.5081774,234.97,234.93,28.37294967]
[1733386269856,0.5081774,234.97,234.93,23.776884]
[1733386271362,0.5081774,234.97,234.87,4.59606567]
[1733386271554,0.5081774,234.97,234.86,23.776884]
[1733386271759,0.5081774,234.97,234.86,4.59606567]
[1733386271954,0.5081774,234.97,234.87,4.59606567]
[1733386273144,0.5081774,234.97,234.88,23.776884]
[1733386274165,0.5081774,234.97,234.9,23.776884]
[1733386274949,0.5081774,234.97,234.89,23.776884]
[1733386275361,0.5081774,234.97,234.87,23.776884]
[1733386277752,0.7227774,234.97,234.81,13.06090845]
[1733386277963,0.7227774,234.97,234.8,13.06090845]
[1733386278262,0.7227774,234.97,234.81,13.91017046]
[1733386278769,0.7227774,234.97,234.82,13.06090845]
[1733386278975,0.7227774,234.97,234.84,23.776884]
[1733386280475,0.5081774,234.97,234.89,13.06090845]
[1733386280672,0.5081774,234.97,234.9,23.776884]
[1733386282955,0.5081774,234.97,234.92,36.83779245]
[1733386283283,0.5081774,234.97,234.94,36.83779245]
[1733386283581,0.5081774,234.97,234.94,23.776884]
[1733386284152,0.5081774,234.97,234.94,36.83779245]
[1733386284357,0.5081774,234.97,234.94,37.68657786]
[1733386285274,0.5081774,234.97,234.94,36.83779245]
[1733386285472,0.5081774,234.97,234.94,23.776884]
[1733386285994,0.5081774,234.97,234.94,32.97532975]
[1733386286167,0.5081774,234.97,234.96,32.12655902]
[1733386286351,0.5081774,234.97,234.96,32.97526032]
[1733386287484,0.5081774,234.97,234.96,32.12655902]
[1733386288803,0.5081774,234.97,234.96,23.776884]
[1733386288973,0.5081774,234.97,234.93,0.84866063]
[1733386289476,0.5081774,234.97,234.92,8.34967502]
[1733386290587,0.5081774,234.97,234.91,32.12655902]
[1733386291693,0.5081774,234.97,234.91,23.776884]
[1733386291883,0.5081774,234.97,234.91,32.12655902]
[1733386292086,0.5081774,234.97,234.9,23.776884]
[1733386292267,0.5081774,234.97,234.92,23.776884]
[1733386293691,0.5081774,234.97,234.95,4.269]
[1733386294693,0.5081774,234.97,234.88,4.269]
[1733386295103,0.5081774,234.97,234.9,4.269]
[1733386295289,0.5081774,234.97,234.92,4.269]
[1733386296178,0.5081774,234.97,234.88,4.269]
[1733386297270,0.5081774,234.97,234.92,4.269]
[1733386297772,0.5081774,234.97,234.93,23.776884]
[1733386298694,0.5081774,234.97,234.92,4.269]
[1733386299197,0.5081774,234.97,234.93,23.776884]
[1733386300198,0.5081774,234.97,234.92,4.269]
[1733386300400,0.5081774,234.97,234.85,0.9]
[1733386300571,0.5081774,234.97,234.84,17.31931381]
[1733386302097,0.5081774,234.97,234.86,4.269]
[1733386302299,0.5081774,234.97,234.88,4.269]
[1733386302808,0.5081774,234.97,234.89,28.045884]
[1733386303102,0.7227774,234.97,234.89,4.269]
[1733386303301,0.7227774,234.97,234.9,23.776884]
[1733386303892,0.5081774,234.97,234.91,4.269]
[1733386307806,0.7227774,234.97,234.91,4.269]
[1733386309405,0.7227774,234.97,234.9,23.776884]
[1733386309610,0.7227774,234.97,234.86,13.05031381]
[1733386309611,0.7227774,234.97,234.88,23.776884]
[1733386309784,1.2307774,234.97,234.83,13.05031381]
[1733386309985,1.2307774,234.97,234.81,6.4122]
[1733386310216,1.2307774,234.97,234.82,13.05031381]
[1733386310706,1.2307774,234.97,234.83,4.269]
[1733386312110,1.2307774,234.97,234.84,28.045884]
[1733386313709,1.2307774,234.97,234.88,32.13504576]
[1733386313918,1.2307774,234.97,234.88,8.35816176]
[1733386314119,1.2307774,234.97,234.87,8.35816176]
[1733386314315,1.2307774,234.97,234.88,23.776884]
[1733386315606,1.2307774,234.97,234.89,4.269]
[1733386315816,1.0161774,234.97,234.9,23.776884]
[1733386316191,1.0161774,234.97,234.89,28.045884]
[1733386316714,0.2146,234.96,234.89,28.045884]
[1733386317420,0.2146,234.96,234.89,36.40404576]
[1733386317623,1.0161774,234.97,234.89,36.40404576]
[1733386318884,1.0161774,234.97,234.91,23.776884]
[1733386318885,0.5081774,234.97,234.91,23.776884]
[1733386319090,0.5081774,234.97,234.93,4.269]
[1733386319521,0.5081774,234.97,234.93,8.35816176]
[1733386319715,0.5081774,234.97,234.94,23.776884]
[1733386319903,0.5081774,234.97,234.96,23.776884]
[1733386320912,0.5081774,234.97,234.95,28.045884]
[1733386322114,0.5081774,234.97,234.94,28.045884]
[1733386322797,0.5081774,234.97,234.94,23.776884]
[1733386323117,0.5081774,234.97,234.93,23.776884]
[1733386323315,0.5081774,234.97,234.95,23.776884]
[1733386323696,0.5081774,234.97,234.93,23.776884]
[1733386324414,0.5081774,234.97,234.95,23.776884]
[1733386324622,0.5081774,234.97,234.96,32.13504576]
[1733386324792,0.5081774,234.97,234.96,32.98400667]
[1733386325501,0.5081774,234.97,234.96,37.25300667]
[1733386326425,0.5081774,234.97,234.96,24.62584491]
[1733386326624,0.5081774,234.97,234.94,7.6]
[1733386326821,0.5081774,234.97,234.96,28.045884]
[1733386327209,0.5081774,234.97,234.96,23.776884]
[1733386327521,0.5081774,234.97,234.96,28.045884]
[1733386327725,0.5081774,234.97,234.96,23.776884]
[1733386330114,0.5081774,234.97,234.91,23.776884]
[1733386330311,0.5081774,234.97,234.89,8.7712]
[1733386330830,0.5081774,234.97,234.85,0.84908914]
[1733386331533,0.5081774,234.97,234.85,9.2072509]
[1733386332057,0.5081774,234.97,234.86,8.35816176]
[1733386332215,0.5081774,234.97,234.87,0.84912241]
[1733386332528,0.5081774,234.97,234.88,23.776884]
[1733386332922,0.5081774,234.97,234.9,23.776884]
[1733386333133,0.5081774,234.97,234.92,23.776884]
[1733386335334,0.5081774,234.97,234.9,23.776884]
[1733386336819,0.5081774,234.97,234.9,32.13504576]
[1733386337125,0.5081774,234.97,234.9,32.98399095]
[1733386337722,0.5081774,234.97,234.94,32.13504576]
[1733386337920,0.5081774,234.97,234.96,23.776884]
[1733386339519,0.5081774,234.97,234.96,32.13504576]
[1733386339823,0.5081774,234.97,234.96,33.03504576]
[1733386340918,0.5081774,234.97,234.96,24.676884]
[1733386341721,0.5081774,234.97,234.96,33.03504576]
[1733386345123,0.5081774,234.97,234.95,0.84874588]
[1733386346529,0.5081774,234.97,234.96,23.776884]
[1733386348850,0.5081774,234.97,234.96,28.045884]
[1733386350950,0.5081774,234.97,234.96,23.776884]
[1733386351259,0.5081774,234.97,234.95,5.11774588]
[1733386354142,0.5081774,234.97,234.95,0.84874588]
[1733386354350,0.5081774,234.97,234.95,5.11774588]
[1733386355253,0.5081774,234.97,234.96,4.269]
[1733386355423,0.5081774,234.97,234.96,37.30404576]
[1733386355839,0.5081774,234.97,234.96,28.945884]
[1733386358522,0.5081774,234.97,234.95,0.84874588]
[1733386359329,0.5081774,234.97,234.95,5.11774588]
[1733386359829,0.5081774,234.97,234.96,28.045884]
[1733386361430,0.5081774,234.97,234.96,28.945884]
[1733386364731,0.5081774,234.97,234.96,5.169]
[1733386365134,0.5081774,234.97,234.95,4.269]
[1733386368725,0.5081774,234.97,234.96,0.84884347]
[1733386369149,0.5081774,234.97,234.96,28.89472747]
[1733386374439,0.5081774,234.97,234.96,0.84884347]
[1733386375264,0.5081774,234.97,234.95,4.269]
[1733386375440,0.5081774,234.97,234.96,4.269]
[1733386376463,0.5081774,234.97,234.91,5.117803]
[1733386376648,0.5081774,234.97,234.93,4.269]
[1733386376853,0.5081774,234.97,234.94,0.84887863]
[1733386378052,0.5081774,234.97,234.95,36.40404576]
[1733386378252,0.5081774,234.97,234.96,0.84867631]
[1733386378758,0.5081774,234.97,234.96,28.89456031]
[1733386380548,0.5081774,234.97,234.96,38.15272207]
[1733386381862,0.5081774,234.97,234.96,43.37293689]
[1733386383703,0.5081774,234.97,234.96,29.79456031]
[1733386384397,0.5081774,234.97,234.96,25.52556031]
[1733386384580,0.5081774,234.97,234.96,51.59562689]
[1733386384782,0.5081774,234.97,234.96,57.52251474]
[1733386385290,0.2146,235.18,234.98,4.254]
[1733386385291,0.7226,235.18,234.98,4.254]
[1733386385485,0.7226,235.18,235.03,4.254]
[1733386385675,0.7226,235.18,235.05,4.254]
[1733386386286,0.508,235.18,235.06,28.030884]
[1733386386692,2.18254055,235.18,235.06,28.030884]
[1733386386894,0.508,235.18,235.06,28.030884]
[1733386388791,0.508,235.18,235.05,4.254]
[1733386389304,0.508,235.18,235.02,4.654]
[1733386389815,0.508,235.18,235.04,4.254]
[1733386391486,0.2146,235.17,235.04,4.254]
[1733386391813,0.2146,235.17,235.02,4.254]
[1733386392017,0.2146,235.17,235.01,25.02550244]
[1733386392714,0.508,235.18,235.01,25.02550244]
[1733386392901,2.18998277,235.18,235.02,4.254]
[1733386393097,0.2146,235.17,235.04,4.254]
[1733386393416,0.2146,235.17,235.06,4.254]
[1733386393927,0.2146,235.2,235.06,4.254]
[1733386394995,0.2146,235.2,235.02,1.24845869]
[1733386395316,0.2146,235.2,235.04,4.254]
[1733386395723,0.2146,235.2,235.06,4.254]
[1733386398415,0.2146,235.2,235.07,30.124784]
[1733386398731,0.2146,235.2,235.07,34.378784]
[1733386400207,23.991484,235.2,235.07,10.6019]
[1733386405845,2.20880802,235.21,235.08,0.84836157]
[1733386405846,0.5081774,235.21,235.08,0.84836157]
[1733386406627,0.5081774,235.21,235.09,4.254]
[1733386406827,0.5081774,235.21,235.1,0.84822406]
[1733386408143,0.5081774,235.21,235.11,7.7534]
[1733386408350,0.5081774,235.21,235.13,8.0923]
[1733386408536,0.5081774,235.21,235.14,6.98687566]
[1733386409331,0.5081774,235.21,235.15,4.254]
[1733386409551,0.5081774,235.21,235.17,4.254]
[1733386409741,0.5081774,235.21,235.18,0.84797322]
[1733386409946,0.5081774,235.21,235.19,4.254]
[1733386410240,0.5081774,235.21,235.2,0.8479386]
[1733386410451,0.5081774,235.21,235.2,11.7613386]
[1733386410620,0.5081774,235.21,235.2,13.3136386]
[1733386416165,1.0,235.35,235.21,6.13659934]
[1733386416462,1.0,235.35,235.24,8.75816176]
[1733386416769,1.0,235.35,235.26,6.6278]
[1733386416935,1.0,235.35,235.27,4.254]
[1733386417556,1.0,235.35,235.29,4.254]
[1733386419661,1.0,235.35,235.28,1.5874]
[1733386421341,24.4113424,235.27,235.26,7.47552415]
[1733386421544,24.4113424,235.27,235.26,6.6278]
[1733386427070,24.4113424,235.27,235.26,10.8818]
[1733386427853,24.4113424,235.27,235.26,6.6278]
[1733386428175,24.4113424,235.27,235.26,10.8818]
[1733386429878,24.4113424,235.27,235.26,19.23996176]
[1733386430600,24.4113424,235.27,235.26,19.63996176]
[1733386430874,24.4113424,235.27,235.26,17.81201045]
[1733386431076,24.4113424,235.27,235.26,26.17017221]
[1733386433476,7.7449424,235.27,235.26,19.34611045]
[1733386434473,7.7449424,235.27,235.26,51.60664621]
[1733386435803,7.7449424,235.27,235.26,43.24848445]
[1733386435974,7.7449424,235.27,235.26,51.60664621]
[1733386438596,7.7449424,235.27,235.26,21.17406176]
[1733386439186,7.7449424,235.27,235.26,27.62359998]
[1733386439673,7.7449424,235.27,235.26,0.4]
[1733386439881,7.7449424,235.27,235.26,4.654]
[1733386440789,7.7449424,235.27,235.26,0.4]
[1733386440991,7.7449424,235.27,235.26,5.50165171]
[1733386441189,7.7449424,235.27,235.26,13.85981347]
[1733386441797,7.7449424,235.27,235.26,5.50165171]
[1733386442340,7.7449424,235.27,235.26,13.85981347]
[1733386443206,7.7449424,235.27,235.26,37.63669747]
[1733386445918,7.7449424,235.27,235.26,37.76218747]
[1733386448045,7.7449424,235.27,235.26,5.50165171]
[1733386448741,7.7449424,235.27,235.26,0.84765171]
[1733386449822,7.7449424,235.27,235.26,5.10165171]
[1733386450842,7.7449424,235.27,235.26,0.84765171]
[1733386451033,7.7449424,235.27,235.25,0.84760904]
[1733386451719,7.7449424,235.27,235.26,4.254]
[1733386454650,7.7449424,235.27,235.26,0.4]
[1733386458251,7.7449424,235.27,235.26,24.654]
[1733386460257,7.7449424,235.27,235.26,48.430884]
[1733386461138,7.7449424,235.27,235.26,56.78904576]
[1733386465358,7.7449424,235.27,235.26,56.91453576]
[1733386466730,7.7449424,235.27,235.26,48.556374]
[1733386466930,7.7449424,235.27,235.26,56.91453576]
[1733386470359,7.7449424,235.27,235.26,48.556374]
[1733386470660,7.7449424,235.27,235.26,56.91453576]
[1733386470861,7.7449424,235.27,235.26,48.556374]
[1733386471448,7.7449424,235.27,235.26,56.91453576]
[1733386474375,7.7449424,235.27,235.26,48.430884]
[1733386476666,7.7449424,235.27,235.26,4.254]
[1733386477654,12.16741767,235.27,235.21,0.84755083]
[1733386477861,12.16741767,235.27,235.17,0.84790366]
[1733386479169,12.16741767,235.27,235.17,5.10190366]
[1733386481775,12.16741767,235.27,235.17,5.50190366]
[1733386483473,4.42247527,235.27,235.17,5.50190366]
[1733386485169,8.023,235.26,235.18,4.254]
[1733386485482,8.023,235.26,235.18,5.10202283]
[1733386485769,12.44547527,235.26,235.18,4.254]
[1733386486277,12.44547527,235.26,235.17,4.254]
[1733386491380,3.70672534,235.25,235.17,4.254]
[1733386492392,3.70672534,235.25,235.18,0.84803832]
[1733386492552,8.023,235.26,235.18,0.84803832]
[1733386492878,8.023,235.26,235.17,4.254]
[1733386493361,8.023,235.26,235.18,0.84801091]
[1733386494817,8.023,235.26,235.19,0.84802777]
[1733386495867,8.023,235.26,235.2,0.84787432]
[1733386496869,8.023,235.26,235.18,0.84787275]
[1733386498184,1.6193,235.26,235.18,0.84787275]
[1733386499787,1.6193,235.26,235.18,1.24787275]
[1733386499964,1.6193,235.26,235.19,4.254]
[1733386500165,1.6193,235.26,235.2,0.84787863]
[1733386501254,1.6193,235.26,235.21,0.84787388]
[1733386501679,1.6193,235.26,235.19,4.254]
[1733386504989,1.6193,235.26,235.2,0.84799205]
[1733386506089,1.6193,235.26,235.17,0.8479709]
[1733386508891,1.6193,235.26,235.18,4.254]
[1733386509089,1.6193,235.26,235.19,0.84797461]
[1733386510095,1.6193,235.26,235.2,5.1018953]
[1733386510399,7.992,235.31,235.22,4.254]
[1733386510561,1.5292,235.31,235.22,5.10178995]
[1733386511181,1.5292,235.31,235.22,13.45995171]
[1733386511384,1.5292,235.31,235.22,13.85995171]
[1733386514393,1.5292,235.31,235.23,4.254]
[1733386514571,1.5292,235.31,235.24,0.84769678]
[1733386514768,1.5292,235.31,235.25,4.254]
[1733386515604,1.5292,235.31,235.26,0.84767474]
[1733386516603,1.5292,235.31,235.26,1.24767474]
[1733386516807,1.5292,235.31,235.27,4.254]
[1733386517101,1.5292,235.31,235.28,0.84758945]
[1733386517783,1.5292,235.31,235.26,0.4]
[1733386521314,1.5292,235.31,235.23,0.4]
[1733386521484,1.5292,235.31,235.25,23.776884]
[1733386522398,1.5292,235.31,235.24,23.776884]
[1733386523315,1.5292,235.31,235.26,23.776884]
[1733386524294,1.5292,235.31,235.22,23.776884]
[1733386524838,4.27213622,235.3,235.16,1.2479096]
[1733386524988,0.2146,235.29,235.16,1.2479096]
[1733386525495,6.3486,235.28,235.16,1.2479096]
[1733386526116,6.3486,235.28,235.17,23.776884]
[1733386526299,6.3486,235.28,235.19,23.776884]
[1733386527099,0.2146,235.27,235.19,23.776884]
[1733386527297,6.3486,235.28,235.16,0.4]
[1733386527298,6.3486,235.28,235.17,23.776884]
[1733386527515,6.3486,235.28,235.19,23.776884]
[1733386527823,0.2146,235.27,235.19,23.776884]
[1733386527993,0.2146,235.27,235.16,1.2480606]
[1733386529330,0.2146,235.27,235.17,23.776884]
[1733386530923,6.3486,235.28,235.17,23.776884]
[1733386531125,6.3486,235.28,235.19,23.776884]
[1733386532001,6.3486,235.28,235.21,23.776884]
[1733386532726,6.3486,235.28,235.19,23.776884]
[1733386534306,6.3486,235.28,235.21,23.776884]
[1733386537724,1.5292,235.31,235.23,23.776884]
[1733386538719,1.5292,235.31,235.24,4.254]
[1733386538922,1.5292,235.31,235.25,28.030884]
[1733386539429,1.5292,235.31,235.25,4.254]
[1733386540027,1.5292,235.31,235.26,4.254]
[1733386541735,1.5292,235.31,235.28,4.254]
[1733386542032,1.5292,235.31,235.29,4.254]
[1733386542626,1.5292,235.31,235.27,4.254]